[Event "Late-Titled-Tuesday-Blitz-February-06-2024"]
[Site "Chess.com"]
[Date "2024.02.06"]
[Round "3"]
[White "Sacbutt"]
[Black "Canal_Showdrez"]
[Result "0-1"]
[WhiteElo "2341"]
[BlackElo "2048"]
[TimeControl "180+1"]
[EndTime "14:29:18 PST"]
[Termination "Canal_Showdrez won on time"]

1. d4 {[%clk 0:03:00.9]} 1... Nf6 {[%clk 0:02:56.7]} 2. Nf3 {[%clk 0:03:01.3]}
2... g6 {[%clk 0:02:51.7]} 3. c4 {[%clk 0:03:00.6]} 3... Bg7 {[%clk 0:02:48.4]}
4. Nc3 {[%clk 0:03:00.5]} 4... O-O {[%clk 0:02:45.6]} 5. g3 {[%clk 0:02:59.5]}
5... d6 {[%clk 0:02:45]} 6. Bg2 {[%clk 0:02:59.7]} 6... c6 {[%clk 0:02:40.1]} 7.
O-O {[%clk 0:02:59.5]} 7... Bg4 {[%clk 0:02:38.7]} 8. Be3 {[%clk 0:02:57.1]}
8... Qd7 {[%clk 0:02:35.9]} 9. Qb3 {[%clk 0:02:56.2]} 9... b6 {[%clk 0:02:31.9]}
10. Rfd1 {[%clk 0:02:54.6]} 10... Bh3 {[%clk 0:02:30.8]} 11. Bh1 {[%clk
0:02:54.3]} 11... Ng4 {[%clk 0:02:31]} 12. Bf4 {[%clk 0:02:51.1]} 12... h6
{[%clk 0:02:19.4]} 13. a4 {[%clk 0:02:30.5]} 13... a5 {[%clk 0:02:16.9]} 14.
Qxb6 {[%clk 0:02:28]} 14... Ra6 {[%clk 0:02:15.3]} 15. Qb3 {[%clk 0:02:26.9]}
15... g5 {[%clk 0:02:13.9]} 16. Bd2 {[%clk 0:02:25.7]} 16... f5 {[%clk
0:02:03.1]} 17. d5 {[%clk 0:02:08.8]} 17... f4 {[%clk 0:01:56]} 18. c5 {[%clk
0:02:00.9]} 18... Kh8 {[%clk 0:01:42.7]} 19. cxd6 {[%clk 0:01:57.4]} 19... exd6
{[%clk 0:01:40]} 20. dxc6 {[%clk 0:01:46.6]} 20... Nxc6 {[%clk 0:01:37.1]} 21.
Nb5 {[%clk 0:01:43.4]} 21... Nxf2 {[%clk 0:01:30]} 22. Kxf2 {[%clk 0:01:40.4]}
22... fxg3+ {[%clk 0:01:29.4]} 23. hxg3 {[%clk 0:01:27.1]} 23... g4 {[%clk
0:01:27.7]} 24. Bc3 {[%clk 0:01:27.7]} 24... gxf3 {[%clk 0:01:25.9]} 25. Bxf3
{[%clk 0:01:12.2]} 25... Ne5 {[%clk 0:01:18.5]} 26. Bxe5 {[%clk 0:00:35.9]}
26... Bxe5 {[%clk 0:01:19.4]} 27. Qe3 {[%clk 0:00:36.3]} 27... Qg7 {[%clk
0:01:17.3]} 28. Rg1 {[%clk 0:00:29.8]} 28... d5 {[%clk 0:00:59.1]} 29. Rad1
{[%clk 0:00:19.4]} 29... Bxb2 {[%clk 0:00:46.7]} 30. Rxd5 {[%clk 0:00:14.4]}
30... Re6 {[%clk 0:00:47.1]} 31. Qd3 {[%clk 0:00:04.7]} 31... Bg4 {[%clk
0:00:40.3]} 32. Rd7 {[%clk 0:00:04.3]} 32... Rxe2+ {[%clk 0:00:37.4]} 33. Kxe2
{[%clk 0:00:03.3]} 33... Bxf3+ {[%clk 0:00:35.5]} 34. Kd2 {[%clk 0:00:02.3]}
34... Qg5+ {[%clk 0:00:28.1]} 35. Kc2 {[%clk 0:00:02.8]} 35... Qc5+ {[%clk
0:00:18.8]} 36. Kxb2 {[%clk 0:00:02.1]} 36... Qb4+ {[%clk 0:00:19]} 37. Kc2
{[%clk 0:00:01.1]} 37... Be4 {[%clk 0:00:18.3]} 0-1

[Event "Late-Titled-Tuesday-Blitz-February-06-2024"]
[Site "Chess.com"]
[Date "2024.02.06"]
[Round "3"]
[White "Jospem"]
[Black "Siemba"]
[Result "1-0"]
[WhiteElo "3040"]
[BlackElo "2521"]
[TimeControl "180+1"]
[EndTime "14:29:19 PST"]
[Termination "Jospem won by checkmate"]

1. e4 {[%clk 0:03:00.9]} 1... e5 {[%clk 0:02:56.9]} 2. Nf3 {[%clk 0:03:01.1]}
2... Nc6 {[%clk 0:02:57.5]} 3. Nc3 {[%clk 0:03:01.8]} 3... Nf6 {[%clk
0:02:57.5]} 4. h3 {[%clk 0:03:02.4]} 4... d5 {[%clk 0:02:56.6]} 5. Bb5 {[%clk
0:03:02.6]} 5... Nxe4 {[%clk 0:02:55.8]} 6. O-O {[%clk 0:03:02.6]} 6... Nxc3
{[%clk 0:02:53.9]} 7. dxc3 {[%clk 0:03:03.5]} 7... Bd7 {[%clk 0:02:51.6]} 8.
Bxc6 {[%clk 0:02:59.8]} 8... Bxc6 {[%clk 0:02:51.4]} 9. Nxe5 {[%clk 0:03:00.5]}
9... Be7 {[%clk 0:02:51]} 10. Nxc6 {[%clk 0:02:46.3]} 10... bxc6 {[%clk
0:02:51]} 11. Be3 {[%clk 0:02:44.9]} 11... O-O {[%clk 0:02:49.8]} 12. Qd3 {[%clk
0:02:45.5]} 12... Qd6 {[%clk 0:02:48.5]} 13. Rad1 {[%clk 0:02:44.4]} 13... Qg6
{[%clk 0:02:48]} 14. Rfe1 {[%clk 0:02:23.7]} 14... Bd6 {[%clk 0:02:46.2]} 15.
Re2 {[%clk 0:02:19.5]} 15... Rab8 {[%clk 0:02:40.7]} 16. b3 {[%clk 0:02:19.3]}
16... a5 {[%clk 0:02:40.3]} 17. a4 {[%clk 0:02:11.3]} 17... Rbe8 {[%clk
0:02:29.5]} 18. Qxg6 {[%clk 0:02:11.2]} 18... hxg6 {[%clk 0:02:29.3]} 19. Kf1
{[%clk 0:02:11.2]} 19... f6 {[%clk 0:02:28.1]} 20. Bd2 {[%clk 0:02:09.3]} 20...
Kf7 {[%clk 0:02:27.2]} 21. Rde1 {[%clk 0:02:08.5]} 21... Rxe2 {[%clk 0:02:26.1]}
22. Rxe2 {[%clk 0:02:09.4]} 22... g5 {[%clk 0:02:25.6]} 23. Re1 {[%clk 0:02:06]}
23... c5 {[%clk 0:02:25.7]} 24. c4 {[%clk 0:02:00.5]} 24... dxc4 {[%clk
0:02:20.9]} 25. bxc4 {[%clk 0:02:01.4]} 25... Rb8 {[%clk 0:02:20.9]} 26. Bc3
{[%clk 0:01:55.5]} 26... Rb6 {[%clk 0:02:10.4]} 27. g3 {[%clk 0:01:38.6]} 27...
Rb8 {[%clk 0:02:07.7]} 28. Re3 {[%clk 0:01:23]} 28... Rb1+ {[%clk 0:02:02]} 29.
Re1 {[%clk 0:01:23.2]} 29... Rb8 {[%clk 0:02:01.9]} 30. Rd1 {[%clk 0:01:22.6]}
30... Rh8 {[%clk 0:01:58.4]} 31. Kg2 {[%clk 0:01:19]} 31... Re8 {[%clk 0:01:56]}
32. Kf3 {[%clk 0:01:15.8]} 32... Rh8 {[%clk 0:01:53.9]} 33. Ra1 {[%clk
0:01:14.3]} 33... Rxh3 {[%clk 0:01:42.2]} 34. Bxa5 {[%clk 0:01:14.1]} 34... f5
{[%clk 0:01:42.3]} 35. Be1 {[%clk 0:01:12.6]} 35... Rh2 {[%clk 0:01:40.8]} 36.
a5 {[%clk 0:01:11.1]} 36... g4+ {[%clk 0:01:36.5]} 37. Ke2 {[%clk 0:01:03]}
37... Rh8 {[%clk 0:01:35.8]} 38. a6 {[%clk 0:01:01.9]} 38... Ra8 {[%clk
0:01:31.6]} 39. Bd2 {[%clk 0:00:50.2]} 39... Ke6 {[%clk 0:01:30.9]} 40. Bf4
{[%clk 0:00:46.5]} 40... Kd7 {[%clk 0:01:27.7]} 41. Bxd6 {[%clk 0:00:43.5]}
41... cxd6 {[%clk 0:01:28.6]} 42. a7 {[%clk 0:00:43.6]} 42... Kc6 {[%clk
0:01:28.6]} 43. Ra6+ {[%clk 0:00:44]} 43... Kc7 {[%clk 0:01:27.3]} 44. Ke3
{[%clk 0:00:44.4]} 44... g5 {[%clk 0:01:27.4]} 45. Kd3 {[%clk 0:00:44.4]} 45...
Kd7 {[%clk 0:01:26.2]} 46. Kc3 {[%clk 0:00:37.4]} 46... Kc7 {[%clk 0:01:26.7]}
47. Kb3 {[%clk 0:00:37.8]} 47... f4 {[%clk 0:01:15.3]} 48. Kc3 {[%clk
0:00:33.7]} 48... fxg3 {[%clk 0:01:14.9]} 49. fxg3 {[%clk 0:00:34.6]} 49... Kb7
{[%clk 0:01:15.4]} 50. Rxd6 {[%clk 0:00:34.8]} 50... Rxa7 {[%clk 0:00:59.4]} 51.
Rd7+ {[%clk 0:00:27]} 51... Kb6 {[%clk 0:00:59.9]} 52. Rxa7 {[%clk 0:00:27.9]}
52... Kxa7 {[%clk 0:01:00.2]} 53. Kd3 {[%clk 0:00:28.8]} 53... Kb6 {[%clk
0:01:00.8]} 54. Ke4 {[%clk 0:00:29.6]} 54... Ka5 {[%clk 0:01:01.6]} 55. Kd5
{[%clk 0:00:30.1]} 55... Kb4 {[%clk 0:01:01.6]} 56. c3+ {[%clk 0:00:30.6]} 56...
Kxc3 {[%clk 0:01:00.8]} 57. Kxc5 {[%clk 0:00:31.5]} 57... Kd3 {[%clk 0:01:01.5]}
58. Kd5 {[%clk 0:00:31.3]} 58... Ke3 {[%clk 0:01:02.4]} 59. c5 {[%clk
0:00:31.8]} 59... Kf3 {[%clk 0:01:03.3]} 60. c6 {[%clk 0:00:32.5]} 60... Kxg3
{[%clk 0:01:04.2]} 61. c7 {[%clk 0:00:33.2]} 61... Kh2 {[%clk 0:01:03.9]} 62.
c8=Q {[%clk 0:00:34.1]} 62... g3 {[%clk 0:01:04.8]} 63. Qh8+ {[%clk 0:00:31.2]}
63... Kg1 {[%clk 0:01:04.7]} 64. Qd4+ {[%clk 0:00:31.3]} 64... Kh2 {[%clk
0:01:04.5]} 65. Qe5 {[%clk 0:00:31.4]} 65... g4 {[%clk 0:01:04.4]} 66. Kd4
{[%clk 0:00:29.5]} 66... Kh1 {[%clk 0:01:04.6]} 67. Qh5+ {[%clk 0:00:26.2]}
67... Kg1 {[%clk 0:01:04.1]} 68. Qxg4 {[%clk 0:00:24.3]} 68... g2 {[%clk
0:01:04.8]} 69. Ke3 {[%clk 0:00:24.4]} 69... Kh2 {[%clk 0:01:05.1]} 70. Qh4+
{[%clk 0:00:24.4]} 70... Kg1 {[%clk 0:01:05.8]} 71. Kf3 {[%clk 0:00:25]} 71...
Kf1 {[%clk 0:01:06.3]} 72. Qf2# {[%clk 0:00:25.5]} 1-0

[Event "Late-Titled-Tuesday-Blitz-February-06-2024"]
[Site "Chess.com"]
[Date "2024.02.06"]
[Round "3"]
[White "Rud_Makarian"]
[Black "gmjoey1"]
[Result "1-0"]
[WhiteElo "3035"]
[BlackElo "2677"]
[TimeControl "180+1"]
[EndTime "14:29:22 PST"]
[Termination "Rud_Makarian won on time"]

1. d4 {[%clk 0:02:57.8]} 1... Nf6 {[%clk 0:03:00]} 2. c4 {[%clk 0:02:58.2]} 2...
c5 {[%clk 0:02:59.2]} 3. d5 {[%clk 0:02:58.1]} 3... e6 {[%clk 0:02:59.9]} 4. Nc3
{[%clk 0:02:58.1]} 4... exd5 {[%clk 0:03:00.8]} 5. cxd5 {[%clk 0:02:59]} 5...
Bd6 {[%clk 0:03:01]} 6. Nf3 {[%clk 0:02:58.3]} 6... a6 {[%clk 0:02:59.7]} 7. g3
{[%clk 0:02:57.9]} 7... Qe7 {[%clk 0:02:58.1]} 8. Bg2 {[%clk 0:02:57.5]} 8...
Bc7 {[%clk 0:02:58.7]} 9. O-O {[%clk 0:02:55.6]} 9... d6 {[%clk 0:02:59.3]} 10.
e4 {[%clk 0:02:56.2]} 10... Bg4 {[%clk 0:02:56.5]} 11. a4 {[%clk 0:02:54.4]}
11... Nbd7 {[%clk 0:02:56.5]} 12. h3 {[%clk 0:02:49.9]} 12... Bxf3 {[%clk
0:02:55.4]} 13. Qxf3 {[%clk 0:02:50.2]} 13... O-O {[%clk 0:02:55.8]} 14. Qe2
{[%clk 0:02:49.6]} 14... Rfe8 {[%clk 0:02:53.4]} 15. Bd2 {[%clk 0:02:49.5]}
15... Ba5 {[%clk 0:02:51.5]} 16. Rae1 {[%clk 0:02:48.9]} 16... Bxc3 {[%clk
0:02:45.1]} 17. Bxc3 {[%clk 0:02:41.5]} 17... Nxd5 {[%clk 0:02:45.1]} 18. Bxg7
{[%clk 0:02:40.3]} 18... Kxg7 {[%clk 0:02:13.9]} 19. Qg4+ {[%clk 0:02:39.2]}
19... Kh8 {[%clk 0:02:10.6]} 20. exd5 {[%clk 0:02:39.6]} 20... Ne5 {[%clk
0:02:11]} 21. Qf5 {[%clk 0:02:34.1]} 21... Qf8 {[%clk 0:02:10.5]} 22. f4 {[%clk
0:02:31.8]} 22... Nc4 {[%clk 0:02:10.4]} 23. Qc2 {[%clk 0:02:24.4]} 23... b5
{[%clk 0:02:03]} 24. b3 {[%clk 0:02:24]} 24... Nb6 {[%clk 0:01:57.3]} 25. a5
{[%clk 0:02:21.6]} 25... Nd7 {[%clk 0:01:47.6]} 26. Qf5 {[%clk 0:02:22]} 26...
Rad8 {[%clk 0:01:45.7]} 27. Kh2 {[%clk 0:02:13.8]} 27... Re7 {[%clk 0:01:40.4]}
28. Rxe7 {[%clk 0:01:54]} 28... Qxe7 {[%clk 0:01:39.1]} 29. Be4 {[%clk
0:01:54.2]} 29... Nf6 {[%clk 0:01:18.5]} 30. Bd3 {[%clk 0:01:44.1]} 30... Rg8
{[%clk 0:01:16.4]} 31. g4 {[%clk 0:01:31.9]} 31... Nxg4+ {[%clk 0:01:00]} 32.
hxg4 {[%clk 0:01:01.2]} 32... Qh4+ {[%clk 0:01:00]} 33. Kg2 {[%clk 0:01:01.9]}
33... Rxg4+ {[%clk 0:00:57.7]} 34. Kf3 {[%clk 0:01:02.4]} 34... Rg3+ {[%clk
0:00:22.7]} 35. Ke2 {[%clk 0:01:01]} 35... c4 {[%clk 0:00:23.3]} 36. bxc4 {[%clk
0:00:53.7]} 36... bxc4 {[%clk 0:00:24.2]} 37. Be4 {[%clk 0:00:43.6]} 37... c3
{[%clk 0:00:18]} 38. Qxf7 {[%clk 0:00:25.9]} 1-0

[Event "Late-Titled-Tuesday-Blitz-February-06-2024"]
[Site "Chess.com"]
[Date "2024.02.06"]
[Round "3"]
[White "Schattman"]
[Black "boguszp"]
[Result "1-0"]
[WhiteElo "2394"]
[BlackElo "2099"]
[TimeControl "180+1"]
[EndTime "14:29:23 PST"]
[Termination "Schattman won on time"]

1. f4 {[%clk 0:03:00.9]} 1... d5 {[%clk 0:02:59.5]} 2. Nf3 {[%clk 0:03:00.1]}
2... Nf6 {[%clk 0:02:59.7]} 3. g3 {[%clk 0:03:00.5]} 3... Bf5 {[%clk 0:02:59.2]}
4. Bg2 {[%clk 0:02:59.9]} 4... e6 {[%clk 0:02:57.5]} 5. O-O {[%clk 0:02:58.3]}
5... Bd6 {[%clk 0:02:57.9]} 6. d3 {[%clk 0:02:57.7]} 6... Nbd7 {[%clk
0:02:58.4]} 7. Nc3 {[%clk 0:02:55.8]} 7... c6 {[%clk 0:02:56.5]} 8. h3 {[%clk
0:02:51.9]} 8... h5 {[%clk 0:02:53.9]} 9. e3 {[%clk 0:02:46.3]} 9... Qc7 {[%clk
0:02:51.4]} 10. Qe2 {[%clk 0:02:45.4]} 10... O-O-O {[%clk 0:02:51.2]} 11. e4
{[%clk 0:02:45.7]} 11... Bg6 {[%clk 0:02:46.6]} 12. e5 {[%clk 0:02:43.8]} 12...
Bc5+ {[%clk 0:02:25.9]} 13. d4 {[%clk 0:02:34.3]} 13... Ne4 {[%clk 0:02:21]} 14.
Nxe4 {[%clk 0:02:09.4]} 14... dxe4 {[%clk 0:02:20]} 15. dxc5 {[%clk 0:02:05.9]}
15... exf3 {[%clk 0:02:19.3]} 16. Bxf3 {[%clk 0:02:02.7]} 16... Nxc5 {[%clk
0:02:16.4]} 17. Be3 {[%clk 0:02:02.5]} 17... Qe7 {[%clk 0:02:03.5]} 18. Qc4
{[%clk 0:01:57.7]} 18... Na6 {[%clk 0:01:01.2]} 19. a3 {[%clk 0:01:57.9]} 19...
Kb8 {[%clk 0:00:56.8]} 20. Rad1 {[%clk 0:01:54]} 20... Rxd1 {[%clk 0:00:51.6]}
21. Rxd1 {[%clk 0:01:52.9]} 21... Rd8 {[%clk 0:00:51.8]} 22. Rxd8+ {[%clk
0:01:41.3]} 22... Qxd8 {[%clk 0:00:51.6]} 23. Kf2 {[%clk 0:01:40.8]} 23... Nc7
{[%clk 0:00:44.8]} 24. Qc5 {[%clk 0:01:24.1]} 24... a6 {[%clk 0:00:38.2]} 25.
Qb6 {[%clk 0:01:13.3]} 25... Qd7 {[%clk 0:00:31.9]} 26. Qc5 {[%clk 0:01:05.6]}
26... Qd8 {[%clk 0:00:20.6]} 27. h4 {[%clk 0:01:01.2]} 27... Nd5 {[%clk
0:00:19]} 28. Qa7+ {[%clk 0:00:58.9]} 28... Kc8 {[%clk 0:00:18.1]} 29. Bc5
{[%clk 0:00:47.5]} 29... Bxc2 {[%clk 0:00:15.1]} 30. Bd6 {[%clk 0:00:45.4]}
30... Qb6+ {[%clk 0:00:12.3]} 31. Qxb6 {[%clk 0:00:43]} 31... Nxb6 {[%clk
0:00:12.3]} 32. Bxh5 {[%clk 0:00:41.1]} 32... g6 {[%clk 0:00:11.6]} 33. Be2
{[%clk 0:00:39.2]} 33... Nc4 {[%clk 0:00:11.9]} 34. Bxc4 {[%clk 0:00:38.5]}
34... b5 {[%clk 0:00:10.3]} 35. Be2 {[%clk 0:00:36.3]} 35... Kd7 {[%clk
0:00:10.7]} 36. g4 {[%clk 0:00:35.4]} 36... Be4 {[%clk 0:00:10.5]} 37. h5 {[%clk
0:00:34.8]} 37... gxh5 {[%clk 0:00:09.9]} 38. gxh5 {[%clk 0:00:35.3]} 38... Bh7
{[%clk 0:00:09.3]} 39. Ke3 {[%clk 0:00:35]} 39... a5 {[%clk 0:00:07.8]} 40. Bd3
{[%clk 0:00:34]} 40... Bg8 {[%clk 0:00:06.4]} 41. h6 {[%clk 0:00:33.8]} 41... c5
{[%clk 0:00:04.1]} 42. Bxc5 {[%clk 0:00:31.4]} 42... Kc6 {[%clk 0:00:03.9]} 43.
Bd6 {[%clk 0:00:31.1]} 43... b4 {[%clk 0:00:02.1]} 44. axb4 {[%clk 0:00:30.2]}
44... axb4 {[%clk 0:00:01.6]} 45. Bxb4 {[%clk 0:00:30.2]} 1-0

[Event "Late-Titled-Tuesday-Blitz-February-06-2024"]
[Site "Chess.com"]
[Date "2024.02.06"]
[Round "3"]
[White "h4parah5"]
[Black "Mops_2004"]
[Result "0-1"]
[WhiteElo "2960"]
[BlackElo "2731"]
[TimeControl "180+1"]
[EndTime "14:29:24 PST"]
[Termination "Mops_2004 won by resignation"]

1. Nf3 {[%clk 0:03:00.9]} 1... d5 {[%clk 0:02:59.6]} 2. e3 {[%clk 0:03:00.5]}
2... Nf6 {[%clk 0:02:58.4]} 3. b3 {[%clk 0:03:00.7]} 3... c6 {[%clk 0:02:57.6]}
4. Bb2 {[%clk 0:03:01.1]} 4... Bf5 {[%clk 0:02:56.4]} 5. h3 {[%clk 0:03:00.9]}
5... h6 {[%clk 0:02:55.6]} 6. g4 {[%clk 0:03:00.2]} 6... Bh7 {[%clk 0:02:53.4]}
7. Rg1 {[%clk 0:03:00.4]} 7... Nbd7 {[%clk 0:02:52]} 8. h4 {[%clk 0:02:59.8]}
8... Qc7 {[%clk 0:02:36.2]} 9. g5 {[%clk 0:02:56.2]} 9... hxg5 {[%clk
0:02:36.2]} 10. hxg5 {[%clk 0:02:57.1]} 10... Ne4 {[%clk 0:02:31.1]} 11. d3
{[%clk 0:02:55.5]} 11... Nd6 {[%clk 0:02:28.6]} 12. Rh1 {[%clk 0:02:51.7]} 12...
O-O-O {[%clk 0:01:31.2]} 13. g6 {[%clk 0:02:50.2]} 13... fxg6 {[%clk 0:01:32.1]}
14. Ng5 {[%clk 0:02:49.5]} 14... Nf6 {[%clk 0:01:32.5]} 15. Bxf6 {[%clk
0:02:37.9]} 15... gxf6 {[%clk 0:01:17.7]} 16. Rxh7 {[%clk 0:02:37.8]} 16... Rxh7
{[%clk 0:01:17.7]} 17. Nxh7 {[%clk 0:02:38]} 17... Bg7 {[%clk 0:01:16.3]} 18.
Qg4+ {[%clk 0:02:37.9]} 18... f5 {[%clk 0:01:16.3]} 19. Qxg6 {[%clk 0:02:36.3]}
19... Bxa1 {[%clk 0:01:16.9]} 20. d4 {[%clk 0:02:31.5]} 20... Qa5+ {[%clk
0:01:16.6]} 21. Kd1 {[%clk 0:02:28.9]} 21... Qxa2 {[%clk 0:01:16.3]} 22. Nd2
{[%clk 0:02:28.8]} 22... Bc3 {[%clk 0:01:13.5]} 23. Qe6+ {[%clk 0:02:27.8]}
23... Kc7 {[%clk 0:01:10.1]} 24. Ng5 {[%clk 0:02:23.1]} 24... Rd7 {[%clk
0:00:46.1]} 25. Bd3 {[%clk 0:02:18.6]} 25... Ne4 {[%clk 0:00:27.2]} 26. Bxe4
{[%clk 0:01:58.9]} 26... fxe4 {[%clk 0:00:26.6]} 27. Qe5+ {[%clk 0:01:57]} 27...
Kb6 {[%clk 0:00:24.8]} 28. Ngxe4 {[%clk 0:01:56.5]} 28... Qa1+ {[%clk
0:00:20.5]} 29. Ke2 {[%clk 0:01:54]} 29... dxe4 {[%clk 0:00:21]} 30. Qc5+ {[%clk
0:01:50.6]} 30... Kc7 {[%clk 0:00:19]} 31. Qe5+ {[%clk 0:01:50.3]} 31... Kc8
{[%clk 0:00:15.9]} 32. Nxe4 {[%clk 0:01:49.3]} 32... Qe1+ {[%clk 0:00:12]} 33.
Kd3 {[%clk 0:01:47.3]} 33... Bb4 {[%clk 0:00:12.6]} 34. Qh8+ {[%clk 0:01:24.1]}
34... Kc7 {[%clk 0:00:12]} 35. Qe5+ {[%clk 0:01:23.4]} 35... Kb6 {[%clk
0:00:12.2]} 36. Nc5 {[%clk 0:01:21.5]} 36... Qd2+ {[%clk 0:00:05.1]} 37. Ke4
{[%clk 0:01:20.1]} 37... Qxc2+ {[%clk 0:00:05.7]} 38. Nd3 {[%clk 0:01:19.4]}
38... Bd6 {[%clk 0:00:05.9]} 39. Qe6 {[%clk 0:01:17.2]} 39... Kc7 {[%clk
0:00:06.5]} 40. Qf5 {[%clk 0:01:12]} 40... Rd8 {[%clk 0:00:06.7]} 41. Qa5+
{[%clk 0:01:11.5]} 41... Kd7 {[%clk 0:00:05.3]} 42. Qf5+ {[%clk 0:01:10.4]}
42... Kc7 {[%clk 0:00:03.5]} 43. Qa5+ {[%clk 0:01:09.8]} 43... Kc8 {[%clk
0:00:04.2]} 44. Qxa7 {[%clk 0:01:09.2]} 44... Qxb3 {[%clk 0:00:04.6]} 45. Qa8+
{[%clk 0:00:59.7]} 45... Kd7 {[%clk 0:00:04.7]} 46. Qa5 {[%clk 0:00:58.4]} 46...
Qd5+ {[%clk 0:00:03.4]} 47. Qxd5 {[%clk 0:00:58.2]} 47... cxd5+ {[%clk
0:00:04.3]} 48. Kxd5 {[%clk 0:00:58.7]} 48... e6+ {[%clk 0:00:04.8]} 49. Kc4
{[%clk 0:00:58.6]} 49... Rc8+ {[%clk 0:00:04.6]} 50. Kb3 {[%clk 0:00:58.2]}
50... b5 {[%clk 0:00:04.4]} 51. f4 {[%clk 0:00:57.5]} 51... Rh8 {[%clk
0:00:04.3]} 52. Kc3 {[%clk 0:00:55.9]} 52... Rh3 {[%clk 0:00:04.5]} 53. Kd2
{[%clk 0:00:55.8]} 53... b4 {[%clk 0:00:05]} 54. e4 {[%clk 0:00:54.9]} 54... b3
{[%clk 0:00:04.4]} 55. e5 {[%clk 0:00:55.5]} 55... Be7 {[%clk 0:00:04.7]} 56. f5
{[%clk 0:00:55.6]} 56... exf5 {[%clk 0:00:04]} 57. d5 {[%clk 0:00:56.5]} 57...
Rxd3+ {[%clk 0:00:03.5]} 58. Kxd3 {[%clk 0:00:56.7]} 58... Ba3 {[%clk
0:00:04.1]} 0-1

[Event "Late-Titled-Tuesday-Blitz-February-06-2024"]
[Site "Chess.com"]
[Date "2024.02.06"]
[Round "3"]
[White "Sanyura"]
[Black "vladoboch"]
[Result "1-0"]
[WhiteElo "2691"]
[BlackElo "2468"]
[TimeControl "180+1"]
[EndTime "14:29:24 PST"]
[Termination "Sanyura won on time"]

1. Nf3 {[%clk 0:02:29.5]} 1... c5 {[%clk 0:02:59.8]} 2. g3 {[%clk 0:02:24.9]}
2... Nc6 {[%clk 0:03:00]} 3. d3 {[%clk 0:02:23.8]} 3... d6 {[%clk 0:03:00.9]} 4.
Nbd2 {[%clk 0:02:23.1]} 4... g6 {[%clk 0:02:59.9]} 5. Bg2 {[%clk 0:02:23.5]}
5... Bg7 {[%clk 0:03:00.6]} 6. O-O {[%clk 0:02:23.9]} 6... h5 {[%clk 0:03:01]}
7. e4 {[%clk 0:02:23.3]} 7... Bd7 {[%clk 0:03:01]} 8. Nh4 {[%clk 0:02:20.2]}
8... Qc8 {[%clk 0:02:58.8]} 9. f4 {[%clk 0:02:20.5]} 9... Bg4 {[%clk 0:02:53.9]}
10. Ndf3 {[%clk 0:02:16.9]} 10... Nf6 {[%clk 0:02:29.9]} 11. f5 {[%clk
0:02:13.7]} 11... Ne5 {[%clk 0:02:16.2]} 12. h3 {[%clk 0:02:02.2]} 12... Bxf3
{[%clk 0:02:14.5]} 13. Nxf3 {[%clk 0:02:03.1]} 13... Nxf3+ {[%clk 0:02:09.9]}
14. Qxf3 {[%clk 0:02:04]} 14... Qd7 {[%clk 0:02:04.7]} 15. c3 {[%clk 0:01:57.9]}
15... O-O-O {[%clk 0:01:56]} 16. d4 {[%clk 0:01:18.9]} 16... gxf5 {[%clk
0:01:47.7]} 17. exf5 {[%clk 0:01:07.8]} 17... cxd4 {[%clk 0:01:39.7]} 18. cxd4
{[%clk 0:01:08.7]} 18... Kb8 {[%clk 0:01:39.5]} 19. Bf4 {[%clk 0:00:46.7]} 19...
Rc8 {[%clk 0:01:36.9]} 20. Rfe1 {[%clk 0:00:27.2]} 20... Rc7 {[%clk 0:01:06.3]}
21. Qa3 {[%clk 0:00:18.8]} 21... Rhc8 {[%clk 0:01:01.4]} 22. Re2 {[%clk
0:00:18.2]} 22... Qxf5 {[%clk 0:00:50.7]} 23. Rae1 {[%clk 0:00:16.5]} 23... Nd5
{[%clk 0:00:46.7]} 24. Bd2 {[%clk 0:00:16.5]} 24... Bxd4+ {[%clk 0:00:46.2]} 25.
Kh1 {[%clk 0:00:16.9]} 25... Bc5 {[%clk 0:00:41.2]} 26. Qb3 {[%clk 0:00:16.6]}
26... Nb6 {[%clk 0:00:31.3]} 27. Rf1 {[%clk 0:00:16.1]} 27... Qg6 {[%clk
0:00:18.1]} 28. Rxf7 {[%clk 0:00:13.3]} 28... e5 {[%clk 0:00:05.1]} 29. Rxc7
{[%clk 0:00:13.3]} 29... Rxc7 {[%clk 0:00:06]} 30. Qf3 {[%clk 0:00:12.5]} 30...
a6 {[%clk 0:00:04.5]} 31. b4 {[%clk 0:00:12.2]} 31... Bd4 {[%clk 0:00:04.5]} 32.
a4 {[%clk 0:00:12.7]} 32... Qb1+ {[%clk 0:00:04]} 33. Kh2 {[%clk 0:00:12.6]}
33... Qg6 {[%clk 0:00:02.8]} 34. a5 {[%clk 0:00:12.2]} 34... Nc4 {[%clk
0:00:02.7]} 35. Be1 {[%clk 0:00:11.2]} 35... Ka7 {[%clk 0:00:02.6]} 36. Bf2
{[%clk 0:00:11]} 36... Rf7 {[%clk 0:00:01.9]} 37. Bxd4+ {[%clk 0:00:10.6]} 37...
exd4 {[%clk 0:00:01.9]} 38. Qd5 {[%clk 0:00:11.5]} 1-0